[Event "Benidorm Open-A 2022"]
[Site "Benidorm"]
[Date "2022.12.06"]
[Round "4.9"]
[White "Goossens, Hanne"]
[Black "Escartin Lacasa, Jose"]
[Result "1/2-1/2"]
[ECO "B30"]
[WhiteElo "2200"]
[BlackElo "2277"]
[Annotator "TA"]
[PlyCount "56"]
[EventDate "2022.12.03"]
[EventType "swiss"]
[EventCountry "ESP"]
[SourceTitle "playchess.com"]
[Source "ChessBase"]
[SourceQuality "1"]
[TimeControl "5400+30"]

{[%evp 10,56,19,19,22,24,35,36,39,37,40,23,35,22,25,20,39,0,77,67,142,147,140,149,170,162,158,168,156,101,96,36,48,5,5,5,8,7,10,8,46,34,50,46,47,47,47,26,59]} 1. e4 c5 2. Nf3 Nc6 3. Bb5 e6 4. O-O Nge7 5. d4 cxd4 6. Nxd4 a6 {[#] aiming for ...Nxd4. 6...Ng6 gains popularity. B30: Sicilian: 2...Nc6 3 Bb5, lines without ...g6.} 7. Be2 Nxd4 8. Qxd4 Nc6 {White is slightly better.} 9. Qc3 b5 10. Bf4 Bb7 11. Rd1 Rc8 {[#] White must now prevent ...Nb4.} 12. Qd2 {[#]} Be7 $146 (12... Na5 {is more complex.} 13. Bg5 Qc7 14. Nc3 d6) ({Predecessor:} 12... Na5 13. Bg5 Qc7 14. a4 b4 15. Bf4 Qd8 16. Qd3 Bc5 17. c3 O-O 18. cxb4 Bxb4 {½-½ (25) Guelker,L (2203)-Traut,G (2253) Remote email 2013}) 13. c3 e5 {Inhibits b4.} (13... Na5 $11 {keeps the balance.}) 14. Be3 $36 {[%mdl 2048] White is more active.} d6 (14... Qc7 $1 $14) 15. a4 bxa4 16. Rxa4 a5 17. Na3 O-O 18. Nc4 Ba6 19. Bb6 {Inhibits Qc7. White has more active pieces.} (19. Nxd6 Bxe2 20. Qxe2 Bxd6 $17) (19. Rda1 $142) 19... Qd7 20. b3 ({Much weaker is} 20. Nxa5 Bxe2 21. Qxe2 Nd4 22. Raxd4 (22. cxd4 $2 {perishes.} Qxa4 23. d5 Rc2 $19) 22... exd4 23. Bxd4 Qe6 $11) (20. Raa1 $16) 20... Rb8 $14 {And now ...Bxc4 would win.} 21. Qe3 Qb7 {Strongly threatening ...Bxc4.} 22. Nxa5 Nxa5 23. Bxa5 {Hoping for Bxa6.} Qxb3 (23... Bxe2 {simplifies} 24. Qxe2 Qxb3 25. Raa1 g6) 24. Raa1 Bd8 25. Bb4 ({But not} 25. Bxa6 Bxa5 26. Rdc1 Qb6 27. Qxb6 Bxb6 $11) (25. Bxd8 $5 Bxe2 26. Bf6 $14) 25... Bb6 26. Qd2 Bxe2 27. Qxe2 Bc5 28. Rab1 (28. Ra3 $5 {[%cal Ra3b3]} Qe6 29. Bxc5 dxc5 30. g3 $14) 28... Qa4 {Black defended with fortune.   Weighted Error Value: White=0.14 (very precise) /Black=0.16 (very precise)} 1/2-1/2

[Event "Benidorm Open-A 2022"]
[Site "Benidorm"]
[Date "2022.12.06"]
[Round "4.10"]
[White "Nurgaliyev, Sauat"]
[Black "Ibanez Aullana, Ramon"]
[Result "1/2-1/2"]
[ECO "B02"]
[WhiteElo "2113"]
[BlackElo "2270"]
[Annotator "TA"]
[PlyCount "74"]
[EventDate "2022.12.03"]
[EventType "swiss"]
[EventCountry "ESP"]
[SourceTitle "playchess.com"]
[Source "ChessBase"]
[SourceQuality "1"]
[TimeControl "5400+30"]

{[%evp 9,74,61,88,76,84,76,85,70,106,89,70,30,73,79,104,71,65,60,63,18,20,-37,-33,-37,-31,-29,-23,-50,-51,-53,-53,-56,-51,-54,0,0,0,0,0,0,0,0,37,4,402,0,0,0,0,0,2,0,0,0,45,40,45,43,45,45,46,43,49,47,56,56,55]} 1. e4 {[%cal Be2e4,Be4e5][%mdl 32]} Nf6 2. e5 Ng8 {[%cal Bf6g8,Bg8h6,Bh6g4][%mdl 32]} 3. d4 d6 4. f4 Nh6 5. Nf3 {[#]} Bf5 $146 ({Predecessor:} 5... g6 6. Bd3 Bg7 7. O-O O-O 8. c3 c5 9. dxc5 dxe5 10. fxe5 Ng4 11. h3 Nxe5 12. Nxe5 Bxe5 {1-0 (31) Kilgour,D-Russell,L Scotland 1995}) 6. Nc3 {B02: Alekhine's Defence: Chase Variation and lines with early Nc3.} e6 7. Be3 Ng4 8. Bg1 {White is better.} h5 9. h3 Nh6 10. g3 dxe5 11. Nxe5 {Strongly threatening g4.} (11. dxe5 Qxd1+ 12. Rxd1 Bxc2 $11) 11... Nd7 12. Bg2 {White is more active.} (12. Qxh5 {feels hotter.} Bb4 13. Qf3 Bxc2 14. Qxb7 Rb8 15. Qc6) 12... Nxe5 13. fxe5 c6 14. Be3 {Against Qg5} Bg6 15. g4 {Prevents Nf5.} ({White should play} 15. Qd2 $11) 15... Be7 $15 16. Qe2 (16. gxh5 Bh4+ 17. Bf2 Bxf2+ 18. Kxf2 Qh4+ 19. Kg1 Bxh5 $17) 16... Bh4+ 17. Kf1 f6 18. Ne4 (18. gxh5 $2 {[#]} Nf5 $1 19. Bf2 (19. hxg6 $2 Ng3+ 20. Kf2 Nxe2+ 21. Kxe2 fxe5 $19) (19. Bxc6+ $2 bxc6 20. Kg2 Bxh5 $19) 19... Bxf2 20. Qxf2 Bxh5 21. exf6 Qxf6 $19) 18... fxe5 (18... Bxe4 {keeps more tension.} 19. Bxe4 fxe5 20. dxe5 Qa5) 19. dxe5 Nf7 {Prevents Nd6+.} 20. Bc5 Bxe4 21. Bxe4 Be7 (21... Nxe5 22. Kg2 Qa5 23. Bd6 $11) (21... Qg5 $15 22. Rd1 Rd8 23. Rxd8+ Kxd8) 22. Rd1 $11 Qc7 23. Bd6 Nxd6 24. exd6 Bxd6 {Threatens to win with ...0-0-0.} 25. Bg6+ {[%mdl 64] [#] Discovered Attack, Double Attack} (25. gxh5 O-O-O 26. Kg2 Kb8 $17) 25... Kd7 {Hoping for ...Raf8+.} 26. Kg2 {[%mdl 1024] White has compensation.} (26. gxh5 Raf8+ 27. Kg2 Qa5 $11) (26. Bf7 $5 {[%cal Re2e6]} Qd8 27. Qxe6+ (27. gxh5 Qe7 $17) 27... Kc7 28. Bxh5 $14 (28. gxh5 Qe7 $14)) 26... Rhf8 $2 {[%mdl 8192]} (26... Rad8 $11 {and Black stays safe.}) 27. Rd3 $2 (27. Bxh5 Rad8 $11) (27. gxh5 Rad8 $11) ({White has to play} 27. Rhe1 $18 Rae8 28. Qe5) 27... Rad8 $1 28. Rhd1 ({Don't play} 28. gxh5 Qa5 $15) 28... Ke7 29. Bf5 {[%csl Gf5][%cal Re2e6]} Be5 30. Re1 $40 {[%cal Od3e3][%mdl 128] Re3! is the strong threat. White is up to no good.} Rxd3 (30... Bxb2 $2 31. Qxe6#) 31. Bxd3 {Dancing on a razor blade.} Bh2 (31... Bxb2 32. Qxe6+ Kd8 33. Bf5 $18 (33. gxh5 Qf4 $11)) (31... Bg3 $5 {[%cal Rf8f2]} 32. Qxe6+ Kd8 $11) 32. Qxe6+ {White is slightly better.} ({But not} 32. gxh5 Qg3+ 33. Kh1 Rf6 $15) (32. Kh1 $5 Bg3 $8 33. Qxe6+ Kd8 34. Re3 $11) 32... Kd8 33. Re3 {And now Bf5 would win.} Qd6 34. Qxd6+ Bxd6 35. gxh5 Re8 36. Rf3 Rf8 37. Rxf8+ Bxf8 {Weighted Error Value: White=0.28 (precise) /Black=0.27 (precise)} 1/2-1/2

[Event "Benidorm Open-A 2022"]
[Site "Benidorm"]
[Date "2022.12.06"]
[Round "4.11"]
[White "Rakshitta Ravi"]
[Black "Gugan G"]
[Result "1-0"]
[ECO "C00"]
[WhiteElo "2219"]
[BlackElo "2126"]
[Annotator "TA"]
[PlyCount "66"]
[EventDate "2022.12.03"]
[EventType "swiss"]
[EventCountry "ESP"]
[SourceTitle "playchess.com"]
[Source "ChessBase"]
[SourceQuality "1"]
[TimeControl "5400+30"]

{[%evp 9,66,-10,10,12,11,10,12,14,51,32,49,41,46,19,40,29,29,-87,84,29,23,33,37,29,42,42,48,51,50,47,49,51,67,49,55,42,33,18,22,20,18,6,32,4,97,95,93,102,101,96,90,50,53,22,45,19,31,28,43]} 1. e4 e6 2. Qe2 c5 3. g3 Nc6 4. Nf3 Be7 5. Bg2 Nf6 6. e5 {C00: French: Unusual White 2nd moves.} Nd5 7. O-O d6 8. exd6 {The position is equal.} Bxd6 9. Rd1 {[#]} Qb6 $146 ({Predecessor:} 9... O-O 10. d4 Qe7 11. c4 Nf6 12. dxc5 Bxc5 13. Nc3 h6 14. a3 a5 15. Na4 Ba7 {½-½ (55) Aarav,D (2309)-Alexakis,D (2484) Belgrade 2022}) 10. Na3 Be7 11. c3 (11. Nc4 $5 {[%cal Rc4b6]} Qa6 12. d3 $14) 11... O-O 12. d4 cxd4 13. Nxd4 (13. Nc4 $11 {remains equal.} Qa6 14. Nxd4) 13... Qc7 $2 (13... Nxd4 $17 {keeps the pressure on.} 14. cxd4 Bxa3 15. Bxd5 exd5 16. bxa3 Bf5) 14. Nc4 (14. c4 $16 Nxd4 15. Rxd4) 14... Nxd4 $1 $11 15. Rxd4 Bf6 16. Rd1 Rd8 17. Ne3 Nxe3 18. Rxd8+ (18. fxe3 Bd7 $15) 18... Bxd8 19. Bxe3 Bd7 $1 {Against Qb5} 20. Rd1 Bf6 21. h4 {White is more active.} (21. Bf4 $5 {[%cal Rf4c7]} e5 22. Be3 $14) 21... h6 22. Qg4 Rd8 $1 23. Be4 (23. Bxa7 $2 b6 24. Bxb6 Qxb6 $19) (23. Bxh6 e5 24. Rxd7 (24. Qf3 Bc6 $17) 24... Qxd7 25. Qxd7 Rxd7 $17) 23... Be5 {[#] And now ...f5 would win.} 24. Qe2 (24. Bxa7 $2 {too greedy.} f5 25. Qg6 fxe4 $19) (24. Bxh6 $2 {is the wrong capture.} f5 25. Qg6 fxe4 $19) 24... b6 25. Kg2 Bc8 (25... f5 {simplifies} 26. Bf3 Bf6 27. Kg1 Kh8) 26. Qb5 (26. Rxd8+ {simplifies} Qxd8 27. Qb5 Bd6 28. Qc6) 26... f5 (26... Bd7 $11 {keeps the balance.} 27. Qb4 Bf6) 27. Rxd8+ $16 Qxd8 28. Qxe5 fxe4 {KQB-KQB} 29. Bd4 {[%csl Gd4][%cal Re5g7] [#]} Qd7 30. Kh2 (30. Qxe4 $2 {loses.} Bb7 $19) 30... Bb7 31. g4 Kh7 32. g5 hxg5 33. Qxg5 Qf7 {Weighted Error Value: White=0.16 (very precise) /Black=0.20 (precise)} 1-0

[Event "Benidorm Open-A 2022"]
[Site "Benidorm"]
[Date "2022.12.06"]
[Round "4.12"]
[White "Arjun C Krishnamachari"]
[Black "Assylov, Miras"]
[Result "0-1"]
[ECO "B12"]
[WhiteElo "2241"]
[BlackElo "2025"]
[Annotator "TA"]
[PlyCount "101"]
[EventDate "2022.12.03"]
[EventType "swiss"]
[EventCountry "ESP"]
[SourceTitle "playchess.com"]
[Source "ChessBase"]
[SourceQuality "1"]
[TimeControl "5400+30"]

{[%evp 16,101,-66,-86,-22,-104,-97,-116,-94,-111,-94,-98,-99,-96,-93,-102,-66,-68,0,0,0,-110,-108,-111,-104,-89,-95,-90,-106,-251,-275,-255,-272,-300,-294,-309,0,-9,0,0,0,0,0,0,0,0,0,-46,0,0,99,100,95,38,68,31,278,112,115,68,214,-8,-7,-7,-2,-54,-54,-54,-54,-139,-133,-128,-96,-210,-177,-188,-180,-202,-160,-225,-45,-68,-67,-67,-66,-5118,-5118,-4602]} 1. e4 c6 2. d4 d5 3. e5 Bf5 4. h4 h5 5. Ne2 e6 6. Ng3 Bg6 7. Be2 c5 8. c3 Nc6 9. Be3 Nh6 {[#] B12: Caro-Kann: Advance Variation.} (9... cxd4 $17 10. Bxd4 Nxd4 11. Qxd4 Ne7) 10. Bxh5 $146 (10. dxc5 $11 Nxe5 11. Na3) ({Predecessor:} 10. Nd2 Nf5 11. Nxf5 Bxf5 12. Nf3 Qb6 13. Qb3 Be7 14. O-O O-O 15. dxc5 Bxc5 16. Qxb6 Bxb6 17. Bxb6 axb6 {1-0 (40) Upolovnev,V (1888)-Isaev,A (2078) Saratov 2010}) 10... Bxh5 $17 11. Qxh5 Qb6 {[%csl LRb2,LRd4] Black is better.} 12. O-O (12. Bxh6 $2 Qxb2 $19) 12... Qxb2 13. Nd2 Qxc3 (13... cxd4 14. cxd4 Bb4 15. Rfb1 $11) 14. Rfc1 Qa3 15. dxc5 Qa6 16. Rab1 Be7 (16... O-O-O $15) 17. Bg5 $11 g6 18. Qf3 (18. Qe2 $11) 18... Nxe5 $17 19. Qb3 f6 $36 {[%mdl 2048] Keeping White busy.} 20. Bxh6 Rxh6 21. h5 gxh5 22. c6 (22. Qxb7 $17 Qxb7 23. Rxb7) 22... bxc6 $19 23. Qe3 Rg6 24. Nxh5 Kf7 {Hoping for ...Rh8.} (24... Qxa2 25. Nf3 d4 26. Qe4 Nxf3+ 27. Qxf3 $17) 25. Nf4 Rg7 $2 (25... Rg4 $2 26. Nf3 Nxf3+ 27. Qxf3 $19) (25... Rh6 $19 {Threatens to win with ...Rah8.} 26. Nf3 Nxf3+ 27. Qxf3 Rah8) 26. Qh3 $11 {Inhibits Rh8.} c5 27. Re1 {And now Nf3 would win.} Rd8 (27... Qxa2 28. Qxe6+ Kf8 29. Red1 $16) (27... c4 28. Nf3 (28. a4 Qd6 $11) 28... c3 29. Rbc1 $18) 28. Nf3 Nxf3+ (28... Qxa2 $2 29. Nxe6 Qc2 30. Nxg7 Kxg7 31. Nxe5 fxe5 32. Rb7 $18) 29. Qxf3 e5 (29... Qxa2 $2 30. Nxe6 $18) 30. Nxd5 Qe6 {Chess con chili.} (30... Qxa2 $2 31. Nxe7 Rd7 32. Nf5 $18) 31. Ne3 (31. Nxe7 $11 Kxe7 32. Rec1) 31... Rg5 (31... Qxa2 $2 32. Nf5 Rg5 33. Nxe7 Kxe7 34. Rb7+ Ke6 35. Qc6+ Kf5 36. Qe4+ (36. Qxc5 Rdg8 $17) 36... Ke6 37. Qc6+ Kf5 38. Qe4+ (38. Qxc5 Rdg8 $17) 38... Ke6 39. f4 $18) (31... Rh8 $15) 32. Rb7 Rd7 (32... Qxa2 $2 33. Nf5 (33. Ng4 Qe6 $15) 33... Qd2 34. Reb1 $18) (32... e4 $11 {keeps the balance.} 33. Qf4 Rh8) 33. Rxd7 $16 Qxd7 34. Rb1 (34. Qe4 $16) 34... Qe6 $14 {[%cal Oe5e4]} 35. Rb7 Kg6 $2 ({Black should try} 35... e4 $1 $14 36. Qd1 f5) 36. g4 ({Not} 36. Rxa7 e4 37. Qf4 Qe5 38. Qxe5 (38. Qh4 f5 $11) 38... Rxe5 $16) (36. Nd5 $18 Bd6 37. Nxf6 $1 {[%mdl 512]} (37. Rxa7 e4 $11)) 36... e4 $16 37. Qg3 (37. Qg2 $1 $16) 37... Qd6 (37... Qe5 $1 $14) 38. Qxd6 $2 ({Less strong is} 38. Rxa7 Qxg3+ 39. fxg3 Bf8 $11) (38. Qh4 $18) 38... Bxd6 $11 39. Rxa7 $18 {[%mdl 4096] Endgame KRB-KRN} Bf4 40. Nc4 (40. Ra6 $11) 40... Rxg4+ $15 41. Kf1 Rh4 42. a4 ({White should play} 42. Ra5 $15) 42... Rh1+ $17 43. Kg2 Rc1 44. Nb6 (44. Ne3 $17) 44... c4 {...c3 is the strong threat.} 45. Nd5 {Against c3} Be5 {White must now prevent ...c3.} 46. Ra8 c3 {aiming for ...c2.} 47. Rc8 {[#]} (47. Ne3 $17) 47... Ra1 $2 ({Better is} 47... f5 $1 $19 {[%cal Rf5f4] Strongly threatening ...f4.} 48. Rc4 Kg5) 48. a5 Rxa5 49. Nxc3 f5 50. f3 $2 {[%mdl 8192] [#]} (50. Rc4 $15) 50... exf3+ $1 $19 51. Kxf3 {Both players deserved the win here.   Weighted Error Value: White=0.49/Black=0.38} 0-1

[Event "Benidorm Open-A 2022"]
[Site "Benidorm"]
[Date "2022.12.06"]
[Round "4.13"]
[White "Lohia, Sohum"]
[Black "Rajarishi Karthi"]
[Result "1-0"]
[ECO "C19"]
[WhiteElo "2136"]
[BlackElo "2239"]
[Annotator "TA"]
[PlyCount "69"]
[EventDate "2022.12.03"]
[EventType "swiss"]
[EventCountry "ESP"]
[SourceTitle "playchess.com"]
[Source "ChessBase"]
[SourceQuality "1"]
[TimeControl "5400+30"]

{[%evp 20,69,37,45,37,0,12,17,42,33,45,2,59,74,102,0,0,-170,-147,-153,82,66,62,71,49,58,342,346,330,327,319,200,208,200,199,199,190,178,200,199,29962,29957,29955,29967,29967,29948,12333,5608,6209,4731,5110,2628]} 1. e4 e6 2. d4 d5 3. Nc3 Bb4 4. e5 c5 5. a3 Bxc3+ 6. bxc3 Qc7 7. Qg4 Ne7 8. Qxg7 Rg8 9. Qxh7 cxd4 10. Ne2 dxc3 11. f4 Bd7 {C18: French: 3 Nc3 Bb4: Main line: 7 h4 and 7 Qg4.} 12. h4 Nbc6 13. h5 (13. Nxc3 Nxe5 $1 14. Nb5 Bxb5 15. Bxb5+ N5c6 $19) 13... O-O-O {The position is equal.} 14. Qd3 (14. Nxc3 $2 {is the wrong capture.} Nxe5 $1 15. Bb2 Nf5 $1 $19) (14. Qxf7 $2 {perishes.} Rdf8 15. Qh7 Nf5 $17) 14... d4 15. Rb1 ({Much worse is} 15. Nxd4 Nxd4 16. Qxd4 Bb5 17. Qxa7 Bxf1 18. Rxf1 Qc4 $17) 15... Be8 (15... Kb8 $11) 16. h6 $14 {[%cal Og2g4]} Ng6 {[%cal Oc6e5] [#]} 17. h7 (17. Qc4 $1 $16) 17... Rh8 $11 {[#]} 18. g4 $146 {[#] Prevents f5.} (18. Rh6 $11 {and White has nothing to worry.}) ({Predecessor:} 18. Ng3 f6 19. exf6 Nxf4 20. Qf3 Nd5 21. Ne4 Bg6 22. Rh4 Rxh7 23. Rxh7 Bxh7 24. Nc5 {0-1 (30) Daulyte Cornette,D (2406)-Paehtz,E (2443) Mulhouse 2014}) 18... Ncxe5 $1 {[%mdl 512]} 19. fxe5 Bc6 $2 (19... Nxe5 $17 {stays on course.} 20. Qg3 d3) 20. Rh5 $16 {Hoping for Qg3.} Nxe5 21. Qg3 f6 {Strongly threatening ...d3.} 22. Bf4 $1 Nf3+ $2 {[%mdl 8192] [#] Loses the game.} ({Black should try} 22... Rxh7 $14 23. Bxe5 fxe5) 23. Qxf3 $3 $18 {[%mdl 512]} Bxf3 24. Bxc7 {The board is on fire.} Kxc7 25. Nf4 Bxg4 26. Rh4 Bf5 27. Bd3 {Bxf5 is the strong threat.} Rd7 28. Bxf5 exf5 29. Ne6+ Kd6 $2 (29... Kc8 $18) 30. Rxd4+ Kxe6 31. Rxd7 {[%mdl 64] Remove Defender} Kxd7 32. Rxb7+ Ke6 33. Rxa7 {And now Kf2 would win. White is clearly winning.} Ke5 34. Kf2 Kf4 35. Rd7 {Weighted Error Value: White=0.22 (precise) /Black=0.75} 1-0

[Event "Benidorm Open-A 2022"]
[Site "Benidorm"]
[Date "2022.12.06"]
[Round "4.14"]
[White "Grabuzova, Tatiana"]
[Black "Vignesh B"]
[Result "1/2-1/2"]
[ECO "A57"]
[WhiteElo "2229"]
[BlackElo "2032"]
[Annotator "TA"]
[PlyCount "60"]
[EventDate "2022.12.03"]
[EventType "swiss"]
[EventCountry "ESP"]
[SourceTitle "playchess.com"]
[Source "ChessBase"]
[SourceQuality "1"]
[TimeControl "5400+30"]

{[%evp 12,60,38,35,52,82,175,-81,-78,-126,-140,-129,-129,-138,-136,-132,-139,-134,-136,-145,-132,-236,-193,-206,-193,-216,-225,-266,-243,-333,-327,-314,-160,-168,-162,-187,-180,-190,-194,-180,-192,-486,-478,-571,-446,-795,-793,-729,-747,-961,-908]} 1. d4 Nf6 2. c4 c5 3. d5 b5 4. cxb5 a6 5. e3 e6 6. Nc3 Bb7 {[%cal Bc8b7,Bb7d5,Bd5c4,Bc4a6][%mdl 32]} 7. e4 axb5 {A57: Benko/Volga Gambit.} 8. Bxb5 Qb6 {[#]} (8... Qa5 $16) 9. Qb3 $146 {[#]} (9. a4 $1 $18) ({Predecessor:} 9. Qe2 exd5 10. exd5+ Be7 11. Bc4 O-O 12. Nf3 Na6 13. O-O Rfe8 14. Rd1 Bd6 15. Qc2 {½-½ (35) Legde,G (2336)-Holzschuh,S (2318) Germany 2012}) 9... Nxe4 $1 $17 {[%mdl 64] Remove Defender, Deflection, Decoy. Black is better.} 10. Nxe4 (10. Nge2 $142 c4 11. Bxc4 Qxf2+ 12. Kd1) (10. dxe6 fxe6) 10... Bxd5 11. Qd3 {Nf3 is the strong threat.} c4 {[%mdl 64] Decoy} 12. Bxc4 Qb4+ 13. Bd2 (13. Nd2 $2 Bxg2 14. b3 (14. a3 $2 Qd6 $19) 14... Bxh1) 13... Qxc4 ({And not} 13... Bxc4 14. Qc2 Qa4 15. Qxa4 (15. b3 Bxb3 16. Qc8+ Ke7 $17) 15... Rxa4 16. Nc3 $17) 14. Qxc4 Bxc4 {This pair of bishops is nice.} 15. Rc1 d5 {Hoping for ...Nc6.} (15... Bxa2 $2 16. Rc8+ Ke7 17. Bb4+ d6 18. Bxd6+ (18. Nxd6 Bd5 $17) 18... Kd7 19. Rxf8 $18 (19. Rxb8 Rxb8 20. Bxb8 Bb4+ 21. Ke2 Rxb8 $17)) 16. a3 (16. b3 $17 {keeps fighting.}) 16... Nc6 {[%cal Oc6e5] And now ...Ne5! would win.} 17. Bf4 {Inhibits Ne5.} Kd7 18. Nd2 Ba6 19. Ngf3 f6 20. Be3 e5 21. Bc5 e4 (21... Bxc5 $19 22. Rxc5 Kd6) 22. Nd4 {[#]} Ne5 23. N2b3 Nd3+ 24. Kd2 {[%cal Oc5f8]} Nxc1 25. Rxc1 Bc4 {White must now prevent ...Bxb3.} 26. Kc3 (26. Bxf8 {was the only defense.} Rhxf8 27. Nc5+ Kd6 28. Nxe4+ dxe4 29. Rxc4) 26... Rc8 $19 {Black is clearly winning.} 27. Kb4 Bd6 28. Nb5 (28. Bxd6 $142 Kxd6 29. Na5) 28... Bxb5 29. Kxb5 Rb8+ 30. Bb6 {[#]} Rxb6+ $1 {[%mdl 33280] Weighted Error Value: White=0.91/Black=0.19 (very precise) . An unexpected result.} 1/2-1/2

[Event "Benidorm Open-A 2022"]
[Site "Benidorm"]
[Date "2022.12.06"]
[Round "4.15"]
[White "Priyanka, Kumari"]
[Black "Van Delft, Merijn"]
[Result "0-1"]
[ECO "B90"]
[WhiteElo "1910"]
[BlackElo "2367"]
[Annotator "TA"]
[PlyCount "86"]
[EventDate "2022.12.03"]
[EventType "swiss"]
[EventCountry "ESP"]
[SourceTitle "playchess.com"]
[Source "ChessBase"]
[SourceQuality "1"]
[TimeControl "5400+30"]

{[%evp 9,86,19,20,0,0,0,0,0,11,-14,36,24,31,33,29,24,22,0,12,0,0,0,0,0,0,-18,0,0,0,0,0,0,0,0,-10,-17,0,-27,-18,-59,-44,-47,-48,-60,-58,-40,-47,-47,-50,-55,-29,-119,-121,-197,-199,-213,-177,-233,-228,-254,-218,-248,-263,-400,-382,-393,-383,-383,-372,-437,-437,-392,-408,-451,-387,-1078,-1065,-968,-890]} 1. e4 c5 2. Nf3 d6 3. d4 cxd4 4. Nxd4 Nf6 5. Nc3 a6 6. h4 {B90: Sicilian Najdorf: Unusual White 6th moves, 6 Be3 Ng4 and 6 Be3 e5.} e5 7. Nb3 Be7 8. Be2 {The position is equal.} Be6 9. f4 h5 (9... Nc6 $11) 10. f5 $14 Bc8 {[%cal Od6d5]} 11. Bg5 Nbd7 {[#]} 12. a4 $146 ({Predecessor:} 12. g3 b5 13. a4 Bb7 14. axb5 axb5 15. Bxf6 Nxf6 16. Bxb5+ Kf8 17. Rxa8 Qxa8 18. Kd2 Nxe4+ 19. Nxe4 Bxe4 {0-1 (36) Nguyen,D (2398)-Daksh,G (1832) Chennai 2022}) 12... b6 13. Nd2 Bb7 14. Nc4 Qc7 (14... Nxe4 $2 15. Nxe4 (15. Bxh5 $2 Ndf6 $19) 15... O-O 16. Ncxd6 Bxe4 17. Nxe4 $18) (14... Bxe4 15. Nxd6+ Bxd6 16. Nxe4 $16) 15. Ne3 Qc5 (15... Bxe4 $2 16. Nxe4 Nxe4 17. Qd5 $18 (17. Bxh5 Qc5 $15)) 16. Qd3 Qb4 {[%csl LRb2,LRe4][%cal Rf6e4]} 17. O-O (17. O-O-O $5 {[%cal Re3d5]}) 17... Nc5 (17... Qxb2 $2 18. Rfb1 Bxe4 19. Qd2 $18) (17... Nxe4 $2 18. Bxe7 Qd4 19. f6 Ndxf6 20. Qxd4 exd4 21. Nxe4 Nxe4 22. Nf5 $18) (17... Bxe4 18. Nxe4 Qxe4 19. Qxe4 (19. Bf3 Qxd3 20. cxd3 Ra7 $11) 19... Nxe4 20. Bf3 $16) 18. Qc4 Qxc4 19. Nxc4 Nfxe4 20. Nxe4 Nxe4 21. Bxe7 Kxe7 22. Nxb6 Rab8 (22... Ng3 $5 {[%cal Rg3e2]} 23. Rf2 Nxe2+ 24. Rxe2 Rad8 $15) 23. Ra3 {Against Ng3} a5 24. Bb5 d5 25. Rd3 Rhd8 {...Rd6 is the strong threat.} 26. Rfd1 $1 {[%cal Rb6d5]} Nf6 $36 {[%mdl 2048] Black is pushing.} (26... d4 $5 {[%cal Re4d6]} 27. Nc4 Kf6 $15) 27. c3 {[#]} Bc6 $1 28. Bxc6 Rxb6 29. Bb5 Kd6 30. Re1 (30. Rg3 $1 $11) 30... e4 $17 31. Rd2 (31. Rg3 $17) 31... Ke5 $19 32. Rf1 Rc8 33. Rd4 (33. Be2 $142) 33... Rc5 34. Rfd1 Kxf5 35. b4 axb4 36. cxb4 (36. Rxb4 {was forced.} Rxc3 37. a5) 36... Rcxb5 37. axb5 Rxb5 {[%mdl 4096] Endgame KRR-KRN} 38. Kf1 Ke5 39. Ke2 Ne8 40. R4d2 Nd6 ({Not} 40... Rxb4 41. Rxd5+ Kf4 42. Rf1+ (42. Rxh5 Rb2+ 43. Rd2 Rxd2+ 44. Kxd2 Kg3 $11) 42... Kg4 43. Rxf7 $14) 41. Ke1 Nc4 {Inhibits g3.} ({Much less strong is} 41... Rxb4 42. Rxd5+ Kf4 43. Rxd6 $18) 42. Rd4 {[#]} (42. Rf2 Rxb4 43. Rxf7) 42... Ne3 ({Weaker is} 42... Rxb4 43. Rxd5+ Kf4 44. Rxh5 $17) 43. R1d2 Nf5 {[%csl LRd4,LRh4] Weighted Error Value: White=0.36/Black=0.05 (flawless)} 0-1